[Event "ESP-chT Honor Division 2022"]
[Site "Linares"]
[Date "2022.09.22"]
[Round "6.7"]
[White "Eljanov, Pavel"]
[Black "Cheparinov, Ivan"]
[Result "1/2-1/2"]
[ECO "A20"]
[WhiteElo "2695"]
[BlackElo "2686"]
[Annotator "TA"]
[PlyCount "78"]
[EventDate "2022.09.17"]
[EventType "team-tourn"]
[EventCountry "ESP"]
[SourceTitle "playchess.com"]
[Source "ChessBase"]
[SourceQuality "1"]
[TimeControl "5400+30"]

{[%evp 9,78,16,26,8,8,0,0,0,41,22,43,37,94,90,115,114,189,185,191,166,176,167,168,139,125,129,143,139,136,129,135,131,131,139,165,130,137,0,158,149,145,135,156,102,110,110,122,118,113,133,176,175,168,172,163,141,119,70,92,0,0,0,0,0,0,0,0,0,0,0,0]} 1. c4 {[%emt 0:00:07]} e5 {[%emt 0:00:04]} 2. g3 {[%emt 0:00:18]} Nf6 {[%emt 0:00:13]} 3. Bg2 {[%emt 0:00:03]} c6 {[%emt 0:00:04]} 4. d4 {[%emt 0:00:27]} e4 {[%emt 0:00:19]} 5. Bg5 {[%emt 0:00:26]} Bb4+ {[%emt 0:01:16]} 6. Nc3 {[%emt 0:02:22] A20: English Opening: 1...e5.} d5 {[%emt 0:01:34]} 7. Qb3 {[%emt 0:07:47]} Bxc3+ {[%emt 0:02:57]} 8. Qxc3 {[%emt 0:04:33] [#]} Be6 $146 {[%emt 0:04:35]} ({Predecessor:} 8... O-O 9. f3 dxc4 10. Bxf6 Qxf6 11. fxe4 c5 12. e5 cxd4 13. exf6 dxc3 14. fxg7 Re8 15. bxc3 {½-½ (40) McShane,L (2647)-Anand,V (2783) Germany 2018}) 9. Nh3 {[%emt 0:04:19][%cal Bg1h3,Bh3f4,Bf4h5][%mdl 32]} Nbd7 {[%emt 0:23:04]} 10. Nf4 {[%emt 0:04:30]} Bf5 {[%emt 0:01:27]} (10... h6 $14 11. Nxe6 fxe6) 11. cxd5 $16 {[%emt 0:11:16]} cxd5 {[%emt 0:00:08] [#]} 12. Qa3 $1 {[%emt 0:00:09] Black must now prevent Nxd5.} Nb6 {[%emt 0:12:02]} (12... h6 $16 13. Nh5 Rh7 14. Nxf6+ Nxf6) 13. Nh5 $18 {[%emt 0:01:46]} Rg8 {[%emt 0:01:03]} 14. b3 {[%emt 0:03:06]} Qe7 {[%emt 0:01:41] [#]} 15. Qa5 {[%emt 0:06:14]} Bg4 {[%emt 0:02:57]} 16. Bxf6 {[%emt 0:02:58]} gxf6 {[%emt 0:00:04]} 17. Nf4 {[%emt 0:00:03]} O-O-O {[%emt 0:09:47]} 18. O-O {[%emt 0:08:36]} Kb8 {[%emt 0:00:08]} 19. Rac1 {[%emt 0:00:14]} Be6 {[%emt 0:03:08]} 20. Rc5 {[%emt 0:02:23]} Qd6 {[%emt 0:01:21]} 21. Rfc1 {[%emt 0:01:50]} Rc8 {[%emt 0:02:16]} 22. Qb4 {[%emt 0:04:09] aiming for Rxc8+.} Rc6 {[%emt 0:06:28]} 23. Qa5 {[%emt 0:00:27]} (23. Qd2 $16) 23... Rgc8 $2 {[%emt 0:01:30]} (23... Rcc8 $1 $11) 24. e3 {[%emt 0:00:25]} Rxc5 {[%emt 0:09:00]} 25. dxc5 {[%emt 0:00:07]} ({Much less strong is} 25. Rxc5 Rc6 $16) 25... Qe7 {[%emt 0:00:16]} 26. Bf1 {[%emt 0:10:58] White is much more active.} ({White should play} 26. Qc3) 26... Nd7 $16 {[%emt 0:00:06][%cal Bb6d7,Bd7e5,Be5f3][%mdl 32]} 27. b4 {[%emt 0:00:09][%cal Bb3b4,Bb4b5][%mdl 32]} Ne5 {[%emt 0:00:45]} 28. Rd1 {[%emt 0:01:08]} Rd8 {[%emt 0:04:55][%cal Od5d4]} 29. b5 {[%emt 0:02:20]} d4 {[%emt 0:02:06]} 30. exd4 {[%emt 0:03:45] And now Be2 would win.} ({Stronger than} 30. b6 Nc6 31. bxa7+ Ka8 $15) 30... Rxd4 {[%emt 0:03:35]} 31. Rxd4 {[%emt 0:03:10] White wants to mate with Rd8+.} Nf3+ {[%emt 0:00:04]} 32. Kh1 {[%emt 0:01:01] Rd8+ would kill now.} Nxd4 {[%emt 0:00:02]} 33. Qc3 {[%emt 0:04:29]} (33. Qb4 $16 Qd8 34. c6) 33... Qd8 {[%emt 0:01:29]} 34. a4 {[%emt 0:01:21]} (34. Qd2 $16) 34... Nf3 $1 $11 {[%emt 0:01:42] The position is equal.} 35. Kg2 {[%emt 0:05:52]} Qd1 {[%emt 0:02:10]} 36. Nxe6 {[%emt 0:03:25]} Ne1+ {[%emt 0:00:03]} 37. Kg1 {[%emt 0:00:13]} Nf3+ {[%emt 0:00:04]} 38. Kg2 {[%emt 0:00:03]} Ne1+ {[%emt 0:00:03]} 39. Kg1 {[%emt 0:01:53]} Nf3+ $1 {[%emt 0:00:05] Blacks defense is rewarded with a draw.  Weighted Error Value: White=0.17 (very precise) /Black=0.19 (very precise)} 1/2-1/2

[Event "ESP-chT Honor Division 2022"]
[Site "Linares"]
[Date "2022.09.22"]
[Round "6.8"]
[White "Santos Latasa, Jaime"]
[Black "Jones, Gawain C B"]
[Result "0-1"]
[ECO "E94"]
[WhiteElo "2680"]
[BlackElo "2623"]
[Annotator "TA"]
[PlyCount "80"]
[EventDate "2022.09.17"]
[EventType "team-tourn"]
[EventCountry "ESP"]
[SourceTitle "playchess.com"]
[Source "ChessBase"]
[SourceQuality "1"]
[TimeControl "5400+30"]

{[%evp 12,80,33,34,49,40,77,40,54,29,35,30,54,64,73,68,108,105,97,85,134,81,93,68,72,73,81,70,77,72,70,39,51,-50,-36,-31,-40,-114,-117,-110,-142,-151,-152,-160,-191,-150,-167,-143,-77,-66,-8,-204,-132,-164,-143,-270,-276,-679,-679,-677,-677,-667,-659,-629,-600,-831,-831,-1770,-1754,-1461,-1150]} 1. Nf3 {[%emt 0:00:03]} Nf6 {[%emt 0:00:14]} 2. c4 {[%emt 0:00:11]} g6 {[%emt 0:00:43]} 3. Nc3 {[%emt 0:00:15]} Bg7 {[%emt 0:00:05]} 4. e4 {[%emt 0:00:15]} d6 {[%emt 0:00:07]} 5. d4 {[%emt 0:00:05]} O-O {[%emt 0:00:07]} 6. Be2 {[%emt 0:00:06]} e5 {[%emt 0:00:05]} 7. O-O {[%emt 0:00:15]} h6 {[%emt 0:00:21] E94: King's Indian: Classical: 6 Be2 e5 7 0-0: Various Black 7th moves.} 8. Re1 {[%emt 0:01:37]} a5 $5 {[%emt 0:00:30][%mdl 4] A promising side line.} 9. Rb1 {[%emt 0:11:12]} Na6 {[%emt 0:11:32] White is slightly better.} 10. b3 {[%emt 0:07:38][%cal Bb2b3,Bb3b4][%mdl 32]} Re8 {[%emt 0:04:20]} 11. d5 {[%emt 0:01:25]} Nh7 {[%emt 0:08:30] [#]} 12. a3 $146 {[%emt 0:04:15]} ({Predecessor:} 12. g3 Rf8 13. a3 f5 14. Nh4 Qf6 15. b4 Nxb4 16. axb4 axb4 17. Rxb4 f4 18. Rb2 {0-1 (60) Sapunov,E (2461)-Caruana,F (2781) Chess.com INT 2022}) 12... f5 {[%emt 0:00:43]} 13. b4 {[%emt 0:00:17] Against Nc5} Nf6 {[%emt 0:05:02] [#]} 14. exf5 $1 {[%emt 0:06:33]} Bxf5 {[%emt 0:07:19]} 15. Rb3 {[%emt 0:00:30]} g5 {[%emt 0:12:00] Against Nh4} (15... c6 $142) 16. h3 {[%emt 0:06:01]} (16. h4 $142) 16... axb4 $16 {[%emt 0:03:30]} 17. axb4 {[%emt 0:00:31]} c5 {[%emt 0:00:05]} 18. dxc6 $1 {[%emt 0:00:19]} bxc6 {[%emt 0:00:05]} 19. Ba3 {[%emt 0:01:10]} Nc7 {[%emt 0:08:42][%cal Ba6c7,Bc7e6,Be6d4][%mdl 32]} 20. b5 {[%emt 0:05:15]} c5 {[%emt 0:00:53]} 21. Bb2 {[%emt 0:00:12]} Ne6 $1 {[%emt 0:06:30]} 22. Bd3 {[%emt 0:03:48]} (22. Nd5 $14) 22... Bxd3 $15 {[%emt 0:00:46]} 23. Qxd3 {[%emt 0:00:06]} Nd4 {[%emt 0:06:44]} 24. Ra3 {[%emt 0:03:02]} (24. Nd2 $15) 24... Rxa3 $17 {[%emt 0:04:56]} 25. Bxa3 {[%emt 0:00:09]} Qa5 $36 {[%emt 0:00:27][%mdl 2048] Black has strong initiative.} 26. Bb2 {[%emt 0:07:39]} e4 $1 {[%emt 0:03:41] Black is more active.} 27. Rxe4 {[%emt 0:00:27]} Nxe4 {[%emt 0:00:39]} 28. Nxe4 {[%emt 0:00:05][%cal Oe4f6] Strongly threatening Nf6+!} Nxf3+ {[%emt 0:03:40]} 29. gxf3 {[%emt 0:00:06]} Qe1+ {[%emt 0:05:37]} (29... Bxb2 $142 30. Nf6+ Kf8 31. Qxd6+ (31. Nxe8 Qe1+ 32. Kg2 Bd4 $17) 31... Re7) 30. Kg2 {[%emt 0:00:34]} Bxb2 {[%emt 0:01:51]} 31. Qd5+ {[%emt 0:00:18] This costs White the game.} (31. Qxd6 $11 Bg7 32. Qc6) 31... Kh8 {[%emt 0:00:24] Hoping for ...Bg7.} 32. Qf7 {[%emt 0:00:35] [#]} Rg8 {[%emt 0:02:56] And now ...Bg7 would win.} 33. Qe6 {[%emt 0:01:27]} (33. b6 $17 Qb1 34. Nxd6) 33... Bg7 $19 {[%emt 0:00:17]} 34. b6 $2 {[%emt 0:00:12]} (34. Qxd6 Qb4 35. Nf6) 34... Rf8 {[%emt 0:00:33] ...Qd1 is the strong threat. Black is clearly winning.} 35. Qxd6 {[%emt 0:03:19]} Qe2 {[%emt 0:00:19][%csl LRc4,LRf3]} 36. Nd2 {[%emt 0:00:06]} Qe5 {[%emt 0:00:33]} 37. Qc6 {[%emt 0:00:17]} Qf4 {[%emt 0:00:29]} 38. Qd5 {[%emt 0:01:23]} Qd4 {[%emt 0:00:53]} 39. Ne4 {[%emt 0:01:42]} Qxd5 {[%emt 0:00:15]} 40. cxd5 {[%emt 0:00:04]} c4 {[%emt 0:00:25] Weighted Error Value: White=0.69/Black=0.11 (very precise)} 0-1

[Event "ESP-chT Honor Division 2022"]
[Site "Linares"]
[Date "2022.09.22"]
[Round "6.9"]
[White "Del Rio De Angelis, Salvador G."]
[Black "Pichot, Alan"]
[Result "0-1"]
[ECO "E48"]
[WhiteElo "2456"]
[BlackElo "2641"]
[Annotator "TA"]
[PlyCount "76"]
[EventDate "2022.09.17"]
[EventType "team-tourn"]
[EventCountry "ESP"]
[SourceTitle "playchess.com"]
[Source "ChessBase"]
[SourceQuality "1"]
[TimeControl "5400+30"]

{[%evp 14,76,0,-13,26,0,0,0,-2,-6,8,0,0,-6,0,-22,-15,-24,-5,0,12,6,27,26,27,10,18,-21,0,0,0,0,0,-12,-6,-19,-18,-24,-16,-2,-15,-104,-108,-116,-70,-74,-65,-83,-69,-72,23,22,10,0,0,0,0,0,0,-96,-95,-186,-169,-406,-387]} 1. d4 {[%emt 0:00:10]} Nf6 {[%emt 0:00:09]} 2. c4 {[%emt 0:00:13]} e6 {[%emt 0:00:16]} 3. Nc3 {[%emt 0:00:26]} Bb4 {[%emt 0:00:09]} 4. e3 {[%emt 0:00:26]} O-O {[%emt 0:00:16]} 5. Bd3 {[%emt 0:00:43]} d5 {[%emt 0:00:19]} 6. cxd5 {[%emt 0:00:34]} exd5 {[%emt 0:00:10]} 7. a3 {[%emt 0:00:19]} Bd6 {[%emt 0:03:26]} 8. Nge2 {[%emt 0:00:28] [#]} Na6 $146 {[%emt 0:04:47] E48: Nimzo-Indian: Rubinstein: 5 Bd3 d5 including 6 Ne2, but excluding 6 a3.} ({Predecessor:} 8... Re8 9. Qc2 c5 10. dxc5 Bxc5 11. O-O Nc6 12. Rd1 Bb6 13. Ng3 Bg4 14. Be2 Bxe2 15. Ncxe2 Rc8 16. Bd2 {½-½ (43) Sethuraman,S (2619)-Erigaisi,A (2660) chess24.com INT 2022}) 9. b4 {[%emt 0:04:37]} c6 {[%emt 0:00:26]} 10. O-O {[%emt 0:02:01]} Nc7 {[%emt 0:01:25] The position is equal.} 11. Rb1 {[%emt 0:06:16]} Ne4 {[%emt 0:11:14]} (11... Ng4 {is more complex.} 12. g3 Re8 13. b5 cxb5 14. Nxb5 Nxb5 15. Bxb5 Bf5) 12. f3 {[%emt 0:10:11]} (12. b5 {looks sharper.} Qh4 13. g3 Qe7 14. Qc2) 12... Nxc3 {[%emt 0:00:27]} 13. Nxc3 {[%emt 0:00:07]} f5 {[%emt 0:00:59]} 14. Rb2 {[%emt 0:19:30]} a5 {[%emt 0:03:13]} 15. Na4 {[%emt 0:09:45]} Ne8 {[%emt 0:12:20][%cal Bc7e8,Be8f6,Bf6e4,Be4c5,Bc5e4][%mdl 32]} 16. Qb3 {[%emt 0:06:44]} axb4 {[%emt 0:03:16]} 17. axb4 {[%emt 0:00:07]} Nf6 {[%emt 0:05:16]} 18. b5 {[%emt 0:04:47]} Qa5 {[%emt 0:13:25]} 19. Nc3 {[%emt 0:06:06] Strongly threatening Ra2.} Qc7 {[%emt 0:02:33] aiming for ...Ra3.} 20. f4 {[%emt 0:00:18]} Ra3 {[%emt 0:07:57]} 21. Qc2 {[%emt 0:00:06]} Ne4 {[%emt 0:00:25]} 22. Rb3 {[%emt 0:00:16]} Ra8 {[%emt 0:07:09]} 23. bxc6 {[%emt 0:03:30]} bxc6 {[%emt 0:00:11]} 24. Nb1 {[%emt 0:00:36]} c5 {[%emt 0:05:09]} 25. dxc5 {[%emt 0:02:04]} Nxc5 {[%emt 0:00:21]} (25... Bxc5 $2 26. Bxe4 fxe4 27. Rc3 $18) 26. Rc3 {[%emt 0:00:22]} Qe7 {[%emt 0:00:14]} 27. Be2 {[%emt 0:05:09] [#]} (27. Rd1 $11 {keeps the balance.}) 27... Ne4 $1 $17 {[%emt 0:00:27]} 28. Rd3 {[%emt 0:00:24]} Ba6 {[%emt 0:01:26]} (28... Be6 $17 29. Bf3 Rfc8) 29. Rxd5 $15 {[%emt 0:03:51]} Rfc8 {[%emt 0:00:55]} 30. Qa2 {[%emt 0:00:04]} Bxe2 {[%emt 0:02:21]} 31. Qxe2 {[%emt 0:00:07]} Rab8 {[%emt 0:04:14] [#]} (31... Qc7 $17 32. Qd3 Ra1) 32. Rxf5 $1 $11 {[%emt 0:03:09]} Qd7 {[%emt 0:02:04]} 33. Ra5 {[%emt 0:03:58]} Qc7 $36 {[%emt 0:01:59][%mdl 2048] Black is more active.} 34. Qa2+ {[%emt 0:02:10]} Kh8 {[%emt 0:00:04] Hoping for ...Qxc1. Active counter play!} 35. Bd2 {[%emt 0:01:39]} Bc5 {[%emt 0:03:54] Threatens to win with ...Qd6.} 36. Ra4 {[%emt 0:00:34] [#]} (36. h3 $1 $11) 36... Qc6 $1 $17 {[%emt 0:00:17][%mdl 1024] Black has strong compensation.} 37. Ra6 {[%emt 0:02:41]} (37. Kh1 $17) 37... Qb5 {[%emt 0:01:04]} 38. Ra5 $2 {[%emt 0:04:12]} (38. Re6 {was called for.} Ra8 39. Qxa8 Rxa8 40. Rxe4) 38... Qe2 {[%emt 0:01:03] Weighted Error Value: White=0.30/Black=0.11 (very precise)} 0-1

[Event "ESP-chT Honor Division 2022"]
[Site "Linares"]
[Date "2022.09.22"]
[Round "6.10"]
[White "Perez Candelario, Manuel"]
[Black "Suarez Garcia, Carlos"]
[Result "1-0"]
[ECO "B07"]
[WhiteElo "2566"]
[BlackElo "2455"]
[Annotator "TA"]
[PlyCount "103"]
[EventDate "2022.09.17"]
[EventType "team-tourn"]
[EventCountry "ESP"]
[SourceTitle "playchess.com"]
[Source "ChessBase"]
[SourceQuality "1"]
[TimeControl "5400+30"]

{[%evp 9,103,45,85,85,85,83,90,88,91,85,117,68,69,67,94,112,132,63,83,76,99,64,72,60,130,118,237,237,218,218,239,96,98,107,97,91,117,113,112,118,287,271,313,334,311,329,320,313,331,316,314,314,337,324,347,345,344,319,360,348,368,372,425,419,458,458,506,448,481,489,470,440,575,556,702,606,607,589,572,578,751,739,722,727,733,706,1091,843,1091,920,29979,29980,29980,29981,29981,29982]} 1. e4 {[%emt 0:00:03][%cal Be2e4,Be4e5][%mdl 32]} d6 {[%emt 0:00:34]} 2. d4 {[%emt 0:00:05]} Nf6 {[%emt 0:00:06]} 3. Nc3 {[%emt 0:00:04]} g6 {[%emt 0:00:05]} 4. Be3 {[%emt 0:00:07]} a6 {[%emt 0:00:07]} 5. h3 {[%emt 0:03:53]} b5 {[%emt 0:02:36] [#]} 6. e5 $1 {[%emt 0:05:52] B07: Pirc Defence: Miscellaneous Systems.} b4 {[%emt 0:05:02]} 7. exf6 {[%emt 0:01:53]} bxc3 {[%emt 0:00:05]} 8. fxe7 {[%emt 0:02:53] White is better.} Qxe7 {[%emt 0:00:05]} 9. bxc3 {[%emt 0:00:13]} Bg7 {[%emt 0:00:26]} 10. Nf3 {[%emt 0:03:46]} (10. Qf3 $16 Ra7 11. Rb1) 10... O-O $14 {[%emt 0:03:23]} 11. Bd3 {[%emt 0:02:30] [#]} c5 $146 ({Predecessor:} 11... Nd7 12. O-O Nb6 13. Re1 Be6 14. Qc1 Bd5 15. Bh6 Qd7 16. Nh2 f5 17. Bxg7 Kxg7 {1-0 (30) Degraeve,R-Moncamp,G (2119) Allauch 2022}) 12. O-O Bb7 {[%emt 0:10:59]} 13. Re1 {[%emt 0:02:44]} ({White should try} 13. Rb1 $16) 13... Qc7 $1 {[%emt 0:00:46]} 14. Bf4 $36 {[%emt 0:07:41][%mdl 2048] White has strong initiative.} c4 {[%emt 0:04:32]} 15. Bf1 {[%emt 0:05:51] Threatens to win with Nd2.} Nd7 {[%emt 0:08:09]} 16. Nd2 {[%emt 0:01:16]} Nb6 {[%emt 0:02:31]} (16... Bd5 $1 $14) 17. Qc1 $16 {[%emt 0:05:16]} Qc6 {[%emt 0:18:44]} (17... Rfb8 $16 18. Qa3 Bf8) 18. Rb1 $18 {[%emt 0:08:27]} Bc8 {[%emt 0:02:47]} 19. Qa3 {[%emt 0:06:42]} d5 {[%emt 0:01:04]} 20. Qd6 {[%emt 0:02:45]} (20. Qa5 $18 Nd7 21. g4) 20... Qxd6 $16 {[%emt 0:00:05]} 21. Bxd6 {[%emt 0:00:04]} Na4 {[%emt 0:00:04]} 22. Bxf8 {[%emt 0:01:43] White is more active.} Kxf8 {[%emt 0:00:07]} 23. Nf3 {[%emt 0:01:35]} Nxc3 {[%emt 0:02:34]} 24. Rb6 {[%emt 0:01:27]} Nxa2 $2 {[%emt 0:08:39] [#] Black cannot hold the game after this.} (24... Be6 $16) 25. Re3 $1 $18 {[%emt 0:02:42]} c3 {[%emt 0:00:03]} 26. Re1 {[%emt 0:01:21] Hoping for Ra1.} Bh6 {[%emt 0:01:13]} 27. Ra1 {[%emt 0:01:14]} Nc1 {[%emt 0:00:05]} 28. g4 {[%emt 0:02:35] And now g5 would win.} Bf4 {[%emt 0:01:02]} 29. Rbb1 {[%emt 0:01:47]} a5 {[%emt 0:00:23]} 30. Rxc1 {[%emt 0:00:41]} Bxc1 {[%emt 0:00:06]} 31. Rxc1 {[%emt 0:00:03]} a4 {[%emt 0:00:04]} 32. Ra1 {[%emt 0:02:26]} a3 {[%emt 0:00:05]} 33. Ne5 {[%emt 0:01:05]} Ra4 {[%emt 0:03:03]} 34. Nd3 {[%emt 0:00:41]} Ke7 {[%emt 0:01:38]} 35. f3 {[%emt 0:00:20]} h5 {[%emt 0:00:50]} 36. Kf2 {[%emt 0:00:37]} ({Less strong is} 36. Nc5 Ra5 37. Kf2 hxg4 38. hxg4 g5 $18) 36... hxg4 {[%emt 0:00:07]} 37. hxg4 {[%emt 0:00:12]} g5 {[%emt 0:00:14]} 38. Ke3 {[%emt 0:01:15]} f5 {[%emt 0:00:29]} 39. gxf5 {[%emt 0:02:52]} Bxf5 {[%emt 0:00:04]} 40. Nc5 {[%emt 0:00:21]} Ra5 {[%emt 0:01:38]} 41. Bd3 {[%emt 0:00:29]} Kf6 {[%emt 0:07:52]} 42. Nb3 {[%emt 0:01:02]} Ra8 {[%emt 0:00:14]} 43. Nc1 {[%emt 0:02:47]} Re8+ {[%emt 0:03:33]} 44. Kf2 {[%emt 0:00:04]} Ra8 {[%emt 0:00:07]} 45. Bxf5 {[%emt 0:00:39]} Kxf5 {[%emt 0:00:04][%mdl 4096] Endgame KRN-KR} 46. Ne2 {[%emt 0:00:29]} a2 {[%emt 0:05:14]} 47. Ke3 {[%emt 0:00:58]} Ra4 {[%emt 0:01:29]} 48. Kd3 {[%emt 0:01:17]} Ra3 {[%emt 0:00:06]} 49. Nxc3 {[%emt 0:00:33]} Kf4 {[%emt 0:00:05]} 50. Rxa2 {[%emt 0:00:07] White mates.} Rxa2 {[%emt 0:00:03]} 51. Nxa2 {[%emt 0:00:04]} Kxf3 {[%emt 0:00:02]} 52. Nc3 {[%emt 0:00:07] Weighted Error Value: White=0.10 (very precise) /Black=0.27 (precise)} 1-0

[Event "ESP-chT Honor Division 2022"]
[Site "Linares"]
[Date "2022.09.22"]
[Round "6.11"]
[White "Trigo Urquijo, Sergio"]
[Black "Stefanova, Antoaneta"]
[Result "0-1"]
[ECO "A06"]
[WhiteElo "2402"]
[BlackElo "2472"]
[Annotator "TA"]
[PlyCount "58"]
[EventDate "2022.09.17"]
[EventType "team-tourn"]
[EventCountry "ESP"]
[SourceTitle "playchess.com"]
[Source "ChessBase"]
[SourceQuality "1"]
[TimeControl "5400+30"]

{[%evp 11,58,0,24,8,14,7,16,15,21,3,22,7,16,0,16,-1,0,-27,-15,-33,-31,-36,-32,-39,-41,-50,-46,-40,-16,-62,-30,-201,-210,-288,-282,-350,-365,-556,-552,-693,-696,-678,-682,-788,-749,-838,-837,-812,-768]} 1. Nf3 {[%emt 0:00:30]} d5 {[%emt 0:00:30]} 2. g3 {[%emt 0:00:37]} g6 {[%emt 0:00:48]} 3. Bg2 {[%emt 0:00:46]} Bg7 {[%emt 0:00:07]} 4. d4 {[%emt 0:00:30]} Nf6 {[%emt 0:04:51]} 5. O-O {[%emt 0:00:42]} O-O {[%emt 0:00:42]} 6. c3 {[%emt 0:00:33]} Bf5 {[%emt 0:05:34]} 7. a4 {[%emt 0:08:05] D02: 1 d4 d5 2 Nf3 sidelines, including 2...Nf6 3 g3 and 2...Nf6 3 Bf4.} a5 {[%emt 0:03:39]} 8. Bf4 {[%emt 0:04:38]} Nh5 {[%emt 0:02:46] [#]} 9. Bg5 $146 {[%emt 0:02:00] The position is equal.} ({Predecessor:} 9. Be3 Nc6 10. h3 Nf6 11. Nbd2 Ne4 12. g4 Nxd2 13. Nxd2 Bc8 14. f4 f5 15. Qb3 {1-0 (41) Meier,G (2648)-Yankelevich,L (2413) Germany 2017}) 9... h6 {[%emt 0:00:42]} 10. Bc1 {[%emt 0:03:47]} Qc8 {[%emt 0:03:40]} 11. Re1 {[%emt 0:03:21]} Nf6 {[%emt 0:07:34]} 12. Qb3 {[%emt 0:09:05]} Ra6 {[%emt 0:03:28]} 13. Nbd2 {[%emt 0:04:51]} c5 {[%emt 0:07:00]} 14. dxc5 {[%emt 0:03:35]} Nbd7 {[%emt 0:04:04][%cal Bb8d7,Bd7c5,Bc5a4][%mdl 32]} ({Don't take} 14... Qxc5 15. Nd4 $14) 15. Nd4 {[%emt 0:12:21]} Nxc5 {[%emt 0:01:39]} 16. Qa3 {[%emt 0:00:54]} Bd7 {[%emt 0:03:53]} 17. N2b3 {[%emt 0:02:35]} Nxa4 {[%emt 0:05:01]} 18. Qxe7 {[%emt 0:02:48]} Re8 {[%emt 0:00:54]} 19. Qa3 {[%emt 0:00:09]} b5 {[%emt 0:03:16][%cal Bb7b5,Bb5b4,Bb4c3][%mdl 32]} 20. Bd2 {[%emt 0:02:14]} (20. Bf4 $11 {was preferrable.}) 20... Ne4 $36 {[%emt 0:05:28][%mdl 2048] Black is more active.} 21. Rad1 {[%emt 0:03:12] This move loses the game for White.} (21. Be3 $1 $11) 21... Nb6 $19 {[%emt 0:07:40] [#] Hoping for ...Nc4.} 22. Bc1 {[%emt 0:02:21]} b4 {[%emt 0:02:49]} 23. Qa1 {[%emt 0:04:37]} bxc3 {[%emt 0:04:16] aiming for ...a4.} 24. Nf3 {[%emt 0:02:51]} (24. Bxe4 {was necessary.} dxe4 25. bxc3) 24... Ba4 {[%emt 0:05:49] Black is clearly winning.} 25. Nbd4 {[%emt 0:04:53]} Bxd1 {[%emt 0:00:57]} 26. Rxd1 {[%emt 0:00:07]} a4 {[%emt 0:01:04][%cal Ba5a4,Ba4a3][%mdl 32]} 27. e3 {[%emt 0:01:37]} cxb2 {[%emt 0:01:21]} 28. Qxb2 {[%emt 0:02:55]} a3 {[%emt 0:00:06]} 29. Qb3 {[%emt 0:00:35]} Nc4 {[%emt 0:04:30] Weighted Error Value: White=0.58/Black=0.05 (flawless)} 0-1

[Event "ESP-chT Honor Division 2022"]
[Site "Linares"]
[Date "2022.09.22"]
[Round "6.12"]
[White "Moreno Tejera, Emilio"]
[Black "Ambartsumova, Karina"]
[Result "1/2-1/2"]
[ECO "C43"]
[WhiteElo "2411"]
[BlackElo "2386"]
[Annotator "TA"]
[PlyCount "69"]
[EventDate "2022.09.17"]
[EventType "team-tourn"]
[EventCountry "ESP"]
[SourceTitle "playchess.com"]
[Source "ChessBase"]
[SourceQuality "1"]
[TimeControl "5400+30"]

{[%evp 10,69,6,-24,5,0,62,60,73,56,41,32,47,38,62,53,60,63,73,68,76,66,87,60,74,73,73,68,105,100,102,112,116,24,22,0,112,24,42,8,15,7,15,15,15,15,15,15,15,14,18,4,18,9,25,9,14,0,27,0,20,0]} 1. e4 {[%emt 0:00:05]} e5 {[%emt 0:00:24]} 2. Nf3 {[%emt 0:00:13]} Nf6 {[%emt 0:00:35]} 3. d4 {[%emt 0:06:41]} Nxe4 {[%emt 0:01:33]} 4. Bd3 {[%emt 0:00:19]} d5 {[%emt 0:01:05]} 5. Nxe5 {[%emt 0:00:48]} Nd7 {[%emt 0:06:57]} 6. Nc3 {[%emt 0:09:50]} Nxc3 {[%emt 0:18:51] C43: Petroff Defence: 3 d4.} 7. bxc3 {[%emt 0:00:55]} Nf6 {[%emt 0:01:09] 7...Bd6 is becoming the main line.} (7... Bd6 $11) 8. O-O $14 {[%emt 0:04:06]} Be7 {[%emt 0:01:01] [#] White is slightly better.} 9. Re1 $146 {[%emt 0:05:29]} ({Predecessor:} 9. c4 dxc4 10. Bxc4 O-O 11. Re1 c6 12. Bg5 Be6 13. Bxe6 fxe6 14. Qe2 Nd5 15. Bxe7 Qxe7 {1-0 (45) Medarde Santiago,L (2370)-Arias Santana,M (2368) Sada 2022}) 9... O-O {[%emt 0:00:16]} 10. c4 {[%emt 0:05:58]} c5 {[%emt 0:11:41]} 11. c3 {[%emt 0:14:29]} Be6 {[%emt 0:25:44]} 12. cxd5 $1 {[%emt 0:10:36] White has more active pieces. The black rooks are badly placed.} Qxd5 {[%emt 0:00:06]} 13. Bc4 {[%emt 0:09:36]} Qd6 {[%emt 0:00:15] [#]} 14. Bxe6 $1 {[%emt 0:10:15]} fxe6 {[%emt 0:00:08][%cal Bf7e6,Be6e5,Be5e4][%mdl 32]} 15. Ba3 {[%emt 0:01:11]} Qc7 {[%emt 0:05:27]} 16. Nf3 {[%emt 0:03:19]} (16. Qb3 {keeps more tension.} Nd5 17. c4 Nf4 18. g3) 16... cxd4 {[%emt 0:02:33]} 17. Bxe7 {[%emt 0:01:28]} Qxe7 {[%emt 0:00:14]} 18. Nxd4 {[%emt 0:00:35]} e5 {[%emt 0:01:32]} 19. Qb3+ {[%emt 0:02:51]} Kh8 {[%emt 0:00:20]} 20. Ne6 {[%emt 0:00:35]} Rf7 {[%emt 0:05:45]} 21. Ng5 {[%emt 0:01:05]} (21. Rxe5 $16 {[%cal Oe6g5] And now Ng5! would win.} Ng4 22. Re2 (22. Rg5 Nxf2 23. Qd5 Qf6 $11)) 21... Rff8 $11 {[%emt 0:00:05]} 22. Ne6 {[%emt 0:00:04]} ({White should try} 22. Re2 $11) 22... Rf7 $16 {[%emt 0:00:03]} 23. h3 {[%emt 0:00:15]} (23. Rxe5 $16 {[%cal Oe6g5] Ng5! is the strong threat.} Qd6 24. Ng5) 23... e4 $1 $11 {[%emt 0:02:13]} 24. Re3 {[%emt 0:00:45]} h6 {[%emt 0:08:49] Inhibits Ng5.} 25. Rae1 {[%emt 0:00:53]} Re8 {[%emt 0:01:28]} 26. Nf4 {[%emt 0:01:46] [#] Threatens to win with Ng6+.} Qc7 {[%emt 0:00:22]} 27. Nd5 {[%emt 0:01:16]} Nxd5 {[%emt 0:01:10]} 28. Qxd5 {[%emt 0:00:07]} Rfe7 {[%emt 0:01:58]} 29. Qb3 {[%emt 0:04:06]} b6 {[%emt 0:00:22]} 30. Qc2 {[%emt 0:00:25]} Qc5 {[%emt 0:00:32]} 31. R1e2 {[%emt 0:01:28]} Qc4 {[%emt 0:01:18]} 32. Kh1 {[%emt 0:00:41]} Rf8 {[%emt 0:00:58]} 33. Kg1 {[%emt 0:00:54][%cal Re3e4]} Rfe8 {[%emt 0:00:12]} 34. Kh1 {[%emt 0:00:31]} Rf8 {[%emt 0:00:01]} 35. Kg1 {[%emt 0:00:30] Weighted Error Value: White=0.18 (very precise) /Black=0.11 (very precise)} 1/2-1/2